bitfinex/quotes_BTCUSD_20251021
["timestamp","ask_amount","ask_price","bid_price","bid_amount"]
[1761026077559,0.01854943,107810.0,107800.0,0.30288875]
[1761026077855,0.22817506,107810.0,107790.0,0.31218325]
[1761026078059,0.20962563,107810.0,107790.0,0.40200226]
[1761026079250,0.20407818,107800.0,107790.0,0.11736]
[1761026079466,0.20962563,107810.0,107790.0,0.13591459]
[1761026079700,0.01854943,107800.0,107790.0,0.32146055]
[1761026079862,0.04116694,107800.0,107790.0,0.30290596]
[1761026080469,0.22669569,107800.0,107790.0,0.11736]
[1761026080668,0.20834626,107800.0,107780.0,0.19484133]
[1761026080802,0.20834626,107800.0,107790.0,0.01855459]
[1761026081992,0.02281751,107800.0,107790.0,0.20410055]
[1761026082201,0.04116694,107800.0,107790.0,0.18554596]
[1761026082363,3.0,107800.0,107790.0,0.18554596]
[1761026083555,0.56795166,107820.0,107800.0,0.18552875]
[1761026083860,0.54005176,107820.0,107800.0,0.18552875]
[1761026084172,0.01834943,107810.0,107800.0,0.18552875]
[1761026085770,0.54005176,107820.0,107800.0,0.18552875]
[1761026085916,0.61632173,107820.0,107800.0,0.18552875]
[1761026086122,0.61631622,107820.0,107800.0,0.18552875]
[1761026086361,0.54004651,107820.0,107800.0,0.30288875]
[1761026086973,0.5254946,107820.0,107800.0,0.23388875]
[1761026087559,0.5254946,107820.0,107800.0,0.30288802]
[1761026088281,0.5254946,107820.0,107800.0,0.18552802]
[1761026094709,0.34,107820.0,107810.0,0.19995993]
[1761026094884,0.34,107820.0,107810.0,0.18551154]
[1761026095089,0.19475341,107830.0,107810.0,0.18551154]
[1761026096240,0.01834943,107820.0,107810.0,0.18551154]
[1761026097236,0.20384377,107820.0,107810.0,0.11732]
[1761026097404,0.18549434,107820.0,107810.0,0.13255089]
[1761026098750,0.18549434,107820.0,107810.0,0.01523089]
[1761026098950,0.22351911,107820.0,107810.0,0.01523089]
[1761026099173,0.03802477,107820.0,107810.0,0.01523089]
[1761026099367,0.0563742,107820.0,107810.0,0.01523089]
[1761026100174,0.24186854,107820.0,107810.0,0.01523089]
[1761026100379,0.22351911,107820.0,107810.0,0.01523089]
[1761026101019,0.22351911,107820.0,107800.0,0.26552]
[1761026101340,0.22351911,107820.0,107800.0,0.45104693]
[1761026102301,0.19475341,107830.0,107810.0,0.2040561]
[1761026102502,0.19475341,107830.0,107810.0,0.18550495]
[1761026102704,3.0,107830.0,107820.0,0.1993916]
[1761026102948,3.0,107830.0,107810.0,0.27532396]
[1761026103252,3.0,107830.0,107820.0,0.20404377]
[1761026103412,0.08981901,107830.0,107820.0,0.18549434]
[1761026103614,3.01834943,107830.0,107820.0,0.18549434]
[1761026103818,3.0,107830.0,107820.0,0.18549434]
[1761026104022,3.0,107830.0,107820.0,0.13049434]
[1761026104228,3.0,107830.0,107820.0,0.01854943]
[1761026105420,3.18547713,107830.0,107820.0,0.01854943]
[1761026105625,0.18547713,107830.0,107820.0,0.01854943]
[1761026105967,3.0,107830.0,107820.0,0.01854943]
[1761026106460,0.08981901,107830.0,107820.0,0.01854943]
[1761026106668,0.10816844,107830.0,107820.0,0.01854943]
[1761026107645,0.01834943,107830.0,107820.0,0.01854943]
[1761026108302,0.20382656,107830.0,107820.0,0.01854943]
[1761026108505,0.18547713,107830.0,107820.0,0.01854943]
[1761026109276,0.54931486,107840.0,107820.0,0.01854943]
[1761026109633,0.01834943,107830.0,107820.0,0.01854943]
[1761026109774,0.07512083,107830.0,107820.0,0.01854943]
[1761026111094,0.07512083,107830.0,107810.0,0.27487339]
[1761026111293,0.26059861,107830.0,107810.0,0.27487339]
[1761026111509,0.24224918,107830.0,107820.0,0.00745287]
[1761026117197,0.05432985,107830.0,107820.0,0.00745287]
[1761026117411,0.07751449,107830.0,107820.0,0.00745287]
[1761026117795,0.1402024,107830.0,107810.0,0.28278274]
[1761026118013,0.1402024,107830.0,107810.0,0.27532987]
[1761026119744,0.1402024,107830.0,107820.0,0.00553598]
[1761026120238,0.1402024,107830.0,107820.0,0.00828353]
[1761026121475,0.18551754,107810.0,107790.0,0.18554204]
[1761026121703,0.22354802,107810.0,107790.0,0.39264105]
[1761026123168,0.22354802,107810.0,107790.0,0.39264235]
[1761026123359,0.22354802,107810.0,107790.0,0.30282583]
[1761026123905,0.22354802,107810.0,107790.0,0.11728]
[1761026124106,0.22354802,107810.0,107790.0,0.1855455]
[1761026127733,0.34,107810.0,107800.0,0.18552875]
[1761026128330,0.34,107810.0,107800.0,0.13752875]
[1761026128574,0.34,107810.0,107790.0,0.1855455]
[1761026129011,0.52551224,107810.0,107790.0,0.1855455]
[1761026133146,0.34,107810.0,107790.0,0.1855455]
[1761026133361,0.34,107810.0,107800.0,0.18552875]
[1761026134301,0.2372202,107820.0,107810.0,0.18551154]
[1761026134302,0.01455145,107820.0,107810.0,0.18551154]
[1761026134560,3.1854777,107830.0,107810.0,0.27533055]
[1761026134781,0.01454973,107830.0,107810.0,0.27533055]
[1761026134938,0.20641172,107830.0,107810.0,0.27533055]
[1761026136365,0.20641172,107830.0,107820.0,0.00613431]
[1761026136581,0.18547834,107830.0,107820.0,0.00613431]
[1761026136768,3.0,107830.0,107820.0,0.19162865]
[1761026136971,3.18547719,107830.0,107810.0,0.27533055]
[1761026137179,0.18021552,107830.0,107810.0,0.27533055]
[1761026137508,0.20340016,107830.0,107810.0,0.27533055]
[1761026137730,0.02318464,107830.0,107810.0,0.27533055]
[1761026137920,0.22321204,107830.0,107810.0,0.27533055]
[1761026138117,0.2000274,107830.0,107810.0,0.27533055]
[1761026138606,0.01454951,107830.0,107810.0,0.27533055]
[1761026138822,0.22321216,107830.0,107810.0,0.27533055]
[1761026139024,0.20002752,107830.0,107810.0,0.27533055]
[1761026139244,0.24182714,107830.0,107810.0,0.27533055]
[1761026140301,0.24158138,107830.0,107810.0,0.27533055]
[1761026142952,0.19978176,107830.0,107810.0,0.27533055]
[1761026144595,0.01430375,107830.0,107810.0,0.27533055]
[1761026144791,0.03748839,107830.0,107810.0,0.27533055]
[1761026145019,0.22296637,107830.0,107810.0,0.27533055]
[1761026145218,0.19978173,107830.0,107810.0,0.27533055]
[1761026145472,0.23923831,107830.0,107810.0,0.27533055]
[1761026146237,0.19978173,107830.0,107810.0,0.27533055]
[1761026146447,0.19978173,107830.0,107820.0,0.00785628]
[1761026146651,0.01430375,107830.0,107820.0,0.19335062]
[1761026146850,0.03748839,107830.0,107820.0,0.18549434]
[1761026148584,0.02318464,107830.0,107820.0,0.18549434]
[1761026150127,0.34004973,107840.0,107830.0,0.18547713]
[1761026150296,0.34004973,107840.0,107830.0,0.14847713]
[1761026150442,0.34004973,107840.0,107830.0,0.14890248]
[1761026150960,0.34004973,107840.0,107830.0,0.00891634]
[1761026150961,0.35459857,107840.0,107830.0,0.00891634]
[1761026151156,0.35459857,107840.0,107830.0,0.19439347]
[1761026151357,0.35459857,107840.0,107830.0,0.18547713]
[1761026151589,0.35459857,107840.0,107820.0,0.30269434]
[1761026151802,0.35459857,107840.0,107830.0,0.00889]
[1761026153683,0.41099211,107840.0,107830.0,0.00889]
[1761026154484,0.59645205,107840.0,107830.0,0.00889]
[1761026157544,0.59645205,107840.0,107820.0,0.36940335]
[1761026157978,0.59645205,107840.0,107830.0,0.0005804]
[1761026158181,0.59645205,107840.0,107820.0,0.39251223]
[1761026158408,0.59645205,107840.0,107820.0,0.20701901]
[1761026158735,0.59645205,107840.0,107820.0,0.39251128]
[1761026160181,0.18547713,107830.0,107820.0,0.1172]
[1761026160378,0.27773484,107830.0,107810.0,0.30271135]
[1761026160563,0.2545502,107830.0,107810.0,0.39253036]
[1761026160766,3.20868113,107820.0,107800.0,0.1172]
[1761026161080,0.18549434,107820.0,107800.0,0.30272793]
[1761026161337,0.26507467,107820.0,107800.0,0.30272793]
[1761026161510,0.24188788,107820.0,107800.0,0.1172]
[1761026161716,0.02318894,107810.0,107800.0,0.1172]
[1761026162295,0.02318894,107810.0,107800.0,0.30319257]
[1761026162598,0.02318894,107810.0,107800.0,0.30272875]
[1761026162798,0.02318894,107810.0,107800.0,0.1172]
[1761026163617,0.02318894,107810.0,107800.0,0.1182]
[1761026163838,0.04969662,107810.0,107800.0,0.1182]
[1761026164025,0.04969662,107810.0,107800.0,0.30331994]
[1761026164201,0.04969662,107810.0,107800.0,0.30272875]
[1761026164604,0.18549434,107820.0,107800.0,0.30272875]
[1761026165777,0.20870048,107810.0,107790.0,0.33374234]
[1761026165983,0.18551154,107810.0,107790.0,0.54076135]
[1761026166945,0.18551335,107810.0,107790.0,0.54076135]
[1761026167143,0.21799627,107800.0,107770.0,0.18561901]
[1761026167341,3.18554791,107790.0,107770.0,0.30281901]
[1761026167544,0.18554791,107790.0,107770.0,0.30281901]
[1761026167923,0.18554791,107790.0,107780.0,0.00052596]
[1761026168403,0.18554791,107790.0,107780.0,0.00061824]
[1761026168620,0.56771107,107790.0,107780.0,9.228e-05]
[1761026171783,0.38216316,107790.0,107780.0,9.228e-05]
[1761026171992,3.56771107,107790.0,107780.0,9.228e-05]
[1761026174882,3.0,107770.0,107750.0,0.18606141]
[1761026175125,3.0,107770.0,107750.0,0.27588042]
[1761026175126,9.219e-05,107770.0,107750.0,0.27588042]
[1761026175329,0.02328974,107770.0,107750.0,0.27588042]
[1761026175452,0.02328974,107770.0,107750.0,0.08981901]
[1761026175655,0.2176105,107760.0,107730.0,0.18584794]
[1761026175904,0.2176105,107760.0,107730.0,0.30304794]
[1761026175905,0.02320185,107750.0,107730.0,0.30304794]
[1761026176554,0.2088169,107750.0,107730.0,0.30304794]
[1761026176758,0.20675469,107750.0,107730.0,0.30304794]
[1761026176938,0.20675469,107750.0,107730.0,0.18584794]
[1761026177545,0.02113964,107750.0,107730.0,0.18584794]
[1761026177748,3.0,107740.0,107730.0,0.0002]
[1761026177930,0.04127852,107740.0,107730.0,0.1858493]
[1761026178131,0.36113964,107750.0,107730.0,0.1858493]
[1761026178319,3.0,107740.0,107730.0,0.1868493]
[1761026178748,3.0,107740.0,107730.0,0.1878493]
[1761026178954,3.52563207,107740.0,107730.0,0.0012]
[1761026179393,3.54019009,107740.0,107730.0,0.0002]
[1761026179510,3.62363177,107740.0,107730.0,0.0002]
[1761026185932,3.4379997,107740.0,107730.0,0.1858493]
[1761026186143,0.01455802,107740.0,107730.0,0.1858493]
[1761026187573,0.22339409,107740.0,107730.0,0.0002]
[1761026187789,0.20019009,107740.0,107720.0,0.280141]
[1761026187978,0.01455802,107740.0,107720.0,0.185661]
[1761026188180,0.03776202,107740.0,107730.0,0.1856493]
[1761026189353,0.03776202,107740.0,107720.0,0.185661]
[1761026189851,0.10675185,107740.0,107720.0,0.185661]
[1761026190247,0.10675185,107740.0,107730.0,0.1856493]
[1761026190449,0.03776202,107740.0,107730.0,0.1856493]
[1761026190654,0.03776202,107740.0,107710.0,0.27858218]
[1761026190655,3.0,107730.0,107710.0,0.27858218]
[1761026190886,3.0,107730.0,107720.0,0.18566654]
[1761026192109,3.0,107730.0,107720.0,0.18616123]
[1761026192776,3.62891927,107730.0,107710.0,0.09289982]
[1761026192991,3.66611485,107720.0,107710.0,0.09289982]
[1761026193204,3.67303805,107720.0,107710.0,0.09289982]
[1761026193416,3.70819096,107720.0,107710.0,0.09289982]
[1761026194712,3.67805945,107720.0,107710.0,0.09289982]
[1761026194917,3.67805945,107720.0,107710.0,0.07889982]
[1761026198235,3.56081945,107720.0,107710.0,0.07889982]
[1761026198547,3.34,107720.0,107710.0,0.07889982]
[1761026198749,3.64294654,107720.0,107710.0,0.07889982]
[1761026201779,3.45728,107720.0,107710.0,0.07889982]
[1761026201959,3.64294654,107720.0,107710.0,0.03289982]
[1761026202161,3.11736,107720.0,107710.0,0.2185836]
[1761026202381,3.0,107720.0,107710.0,0.2185836]
[1761026202609,3.11732,107720.0,107710.0,0.2185836]
[1761026203725,3.11732,107720.0,107710.0,0.03289982]
[1761026203900,3.11732,107720.0,107710.0,0.2185836]
[1761026205655,3.11732,107720.0,107710.0,0.03289982]
[1761026205886,3.20713901,107720.0,107710.0,0.03289982]
[1761026206874,3.22170154,107720.0,107710.0,0.03289982]
[1761026207090,3.20713901,107720.0,107710.0,0.03289982]
[1761026208421,3.11732,107720.0,107710.0,0.2185836]
[1761026209254,0.11732,107720.0,107710.0,0.1845836]
[1761026210172,0.1318824,107720.0,107710.0,0.1845836]
[1761026211841,0.0145624,107720.0,107710.0,0.1845836]
[1761026211961,0.15428586,107730.0,107710.0,0.1845836]
[1761026212160,0.2464123,107730.0,107710.0,0.1845836]
[1761026212366,0.22320614,107730.0,107710.0,0.1845836]
[1761026213397,0.35456068,107740.0,107720.0,0.18566654]
[1761026213623,0.01456068,107740.0,107720.0,0.18581526]
[1761026213820,3.0,107730.0,107720.0,0.00014872]
[1761026214923,3.0,107730.0,107720.0,0.18581526]
[1761026215124,3.1856493,107730.0,107720.0,0.00014872]
[1761026215364,3.27546831,107730.0,107720.0,0.00014872]
[1761026216219,3.0,107720.0,107710.0,0.14983234]
[1761026216420,3.0,107720.0,107710.0,0.15032929]
[1761026219039,3.0,107730.0,107720.0,0.18566654]
[1761026219247,3.08981901,107730.0,107720.0,0.18566654]
[1761026220388,0.08981901,107730.0,107720.0,0.18566654]
[1761026220605,0.02320616,107730.0,107720.0,0.18566654]
[1761026221316,0.02320616,107730.0,107710.0,0.2401483]
[1761026222130,0.02320616,107730.0,107720.0,0.18566654]
[1761026222612,0.20885546,107730.0,107710.0,0.18617769]
[1761026222775,0.19491814,107740.0,107710.0,0.3035002]
[1761026223011,0.02320616,107730.0,107710.0,0.3035002]
[1761026223390,0.02320616,107730.0,107710.0,0.18568325]
[1761026224163,0.20885725,107730.0,107710.0,0.18568325]
[1761026224356,0.18565109,107730.0,107710.0,0.18568325]
[1761026224846,0.23389958,107740.0,107710.0,0.18568325]
[1761026225052,0.02320616,107730.0,107720.0,0.18566654]
[1761026225299,0.38826304,107740.0,107720.0,0.18566654]
[1761026225494,3.03774404,107730.0,107720.0,0.18566654]
[1761026225722,0.01456143,107730.0,107720.0,0.18566654]
[1761026225895,0.19489631,107750.0,107720.0,0.18566654]
[1761026226261,3.0,107730.0,107720.0,0.18566654]
[1761026226634,3.0,107740.0,107720.0,0.18566654]
[1761026227047,0.02318261,107730.0,107720.0,0.18566654]
[1761026227223,3.0,107740.0,107720.0,0.18566654]
[1761026228038,3.0,107740.0,107730.0,0.1856493]
[1761026228241,0.34,107750.0,107730.0,0.1856493]
[1761026228576,0.02318261,107740.0,107730.0,0.1856493]
[1761026229126,0.52561786,107750.0,107730.0,0.1856493]
[1761026229127,0.34,107750.0,107730.0,0.1856493]
[1761026231768,0.34,107750.0,107740.0,0.18563207]
[1761026232541,0.34,107750.0,107740.0,0.30299207]
[1761026235415,0.34,107750.0,107740.0,0.11736]
[1761026235792,0.52561484,107750.0,107740.0,0.11736]
[1761026236207,0.34,107750.0,107740.0,0.1359232]
[1761026237516,0.57817464,107750.0,107720.0,0.19494676]
[1761026237692,0.57817464,107750.0,107730.0,0.32153319]
[1761026237906,0.57817464,107750.0,107730.0,0.30296826]
[1761026239235,0.59273453,107750.0,107730.0,0.30296826]
[1761026239459,0.57817464,107750.0,107730.0,0.30296826]
[1761026242437,0.59273454,107750.0,107730.0,0.30296826]
[1761026244832,0.3545599,107750.0,107730.0,0.30296826]
[1761026245330,0.3545599,107750.0,107740.0,0.18563207]
[1761026247841,0.54017617,107750.0,107730.0,0.39278741]
[1761026248168,0.54017617,107750.0,107740.0,0.0185632]
[1761026249028,3.0,107740.0,107730.0,0.11728]
[1761026249250,0.08981901,107740.0,107720.0,0.34314676]
[1761026249443,0.08981901,107740.0,107730.0,0.01856493]
[1761026250601,0.08981901,107740.0,107720.0,0.43296577]
[1761026250874,0.08981901,107740.0,107730.0,0.11728]
[1761026251592,3.0,107740.0,107730.0,0.11728]
[1761026252787,0.1856493,107730.0,107720.0,0.1482]
[1761026253195,0.1856493,107730.0,107720.0,0.16676665]
[1761026253559,3.0,107730.0,107720.0,0.35243319]
[1761026253762,3.0,107730.0,107720.0,0.33386654]
[1761026253908,3.0,107730.0,107720.0,0.33486654]
[1761026254111,0.18563207,107740.0,107720.0,0.33486654]
[1761026254384,0.02318261,107730.0,107720.0,0.33486654]
[1761026254570,0.02318261,107730.0,107720.0,0.33386654]
[1761026254811,0.02384064,107750.0,107720.0,0.33386654]
[1761026255018,0.23264139,107750.0,107730.0,0.20421419]
[1761026255220,0.20945878,107750.0,107730.0,0.18564926]
[1761026255577,0.0145599,107750.0,107730.0,0.18564926]
[1761026255767,0.0145599,107750.0,107740.0,0.20419527]
[1761026255986,0.03774251,107750.0,107740.0,0.18563207]
[1761026258085,0.03774251,107750.0,107730.0,0.39274827]
[1761026258291,0.37774251,107750.0,107740.0,0.0185632]
[1761026258514,0.3545599,107750.0,107740.0,0.0185632]
[1761026260777,0.0145599,107750.0,107740.0,0.0185632]
[1761026260976,0.03774251,107750.0,107740.0,0.0185632]
[1761026261459,0.03774251,107750.0,107740.0,0.20419527]
[1761026261664,0.03774251,107750.0,107740.0,0.18563207]
[1761026264747,0.52563207,107740.0,107720.0,0.33386465]
[1761026264975,0.52563207,107740.0,107720.0,0.26548]
[1761026265253,0.34,107740.0,107720.0,0.45114628]
[1761026265494,0.525634,107740.0,107720.0,0.45114628]
[1761026265856,3.0,107740.0,107720.0,0.45114628]
[1761026266369,0.34,107740.0,107730.0,0.1856493]
[1761026266995,0.34,107740.0,107720.0,0.30294628]
[1761026267172,0.34,107740.0,107730.0,0.1856493]
[1761026269742,0.34,107740.0,107730.0,0.68560576]
[1761026270131,0.33975404,107740.0,107730.0,0.68560576]
[1761026270481,0.33975404,107740.0,107730.0,0.27546831]
[1761026270700,0.33975404,107740.0,107730.0,0.68560576]
[1761026271075,0.33975404,107740.0,107730.0,0.27546831]
[1761026271894,0.33975404,107740.0,107730.0,0.68560576]
[1761026272739,0.33975404,107740.0,107730.0,0.83380576]
[1761026273058,0.33975404,107740.0,107730.0,0.46740095]
[1761026273259,0.33975404,107740.0,107730.0,0.42366831]
[1761026279080,0.33975404,107740.0,107730.0,0.83380576]
[1761026284066,0.01455946,107760.0,107750.0,0.18561484]
[1761026284302,0.19488777,107780.0,107750.0,0.30285484]
[1761026284303,0.36318261,107770.0,107750.0,0.30285484]
[1761026284508,0.52558337,107770.0,107750.0,0.30285484]
[1761026285316,0.52608072,107770.0,107750.0,0.32367385]
[1761026285529,0.52607778,107770.0,107750.0,0.23385484]
[1761026285686,0.02318261,107760.0,107750.0,0.23385484]
[1761026286882,0.02318261,107760.0,107750.0,0.30285484]
[1761026289096,0.35505542,107770.0,107750.0,0.30285484]
[1761026289282,0.02318261,107760.0,107750.0,0.30285484]
[1761026290506,0.38135727,107770.0,107750.0,0.30285484]
[1761026291175,0.20063678,107770.0,107750.0,0.30285484]
[1761026291325,0.01505542,107770.0,107760.0,0.18559762]
[1761026291866,0.20063738,107770.0,107750.0,0.38823057]
[1761026292420,0.31787738,107770.0,107750.0,0.32523057]
[1761026292619,0.31787738,107770.0,107750.0,0.23985484]
[1761026293836,0.13229542,107770.0,107750.0,0.23985484]
[1761026294042,0.13229542,107770.0,107760.0,0.20415738]
[1761026294043,0.02538114,107770.0,107760.0,0.20415738]
[1761026294263,0.02538114,107770.0,107760.0,0.18559762]
[1761026294849,0.01082307,107770.0,107760.0,0.18559762]
[1761026295496,0.35082307,107770.0,107760.0,0.18559762]
[1761026297897,0.3653793,107770.0,107760.0,0.18559762]
[1761026299644,0.0253793,107770.0,107760.0,0.18559762]
[1761026300642,0.0253793,107770.0,107760.0,0.14559762]
[1761026300844,0.0253793,107770.0,107760.0,0.16415738]
[1761026301788,0.00049735,107770.0,107760.0,1.11015889]
[1761026301942,0.00049735,107770.0,107760.0,1.18141814]
[1761026302152,0.00049735,107770.0,107760.0,0.36141792]
[1761026302365,0.00049735,107770.0,107760.0,0.77141803]
[1761026302591,3.0,107760.0,107740.0,0.00999999]
[1761026302810,3.0,107740.0,107730.0,0.21356233]
[1761026303651,3.0,107740.0,107730.0,0.1856493]
[1761026304074,3.0,107740.0,107720.0,0.18566267]
[1761026304277,3.0,107740.0,107730.0,0.01856493]
[1761026304482,3.0,107740.0,107730.0,0.01956493]
[1761026304887,3.0,107740.0,107730.0,0.01856493]
[1761026305608,0.18563207,107740.0,107720.0,0.08981901]
[1761026305801,0.19491367,107740.0,107720.0,0.118]
[1761026305940,0.19491367,107740.0,107710.0,0.3036828]
[1761026306148,0.19491367,107740.0,107710.0,0.39350181]
[1761026307777,0.19491367,107740.0,107720.0,0.20423263]
[1761026307957,0.19491367,107740.0,107720.0,0.18566598]
[1761026313835,0.6528961,107750.0,107720.0,0.18566598]
[1761026314036,3.0,107740.0,107730.0,0.18564522]
[1761026314365,0.34,107750.0,107740.0,0.18563207]
[1761026314572,0.34,107750.0,107730.0,0.30352522]
[1761026314573,0.45792,107750.0,107730.0,0.30352522]
[1761026314787,0.0145587,107760.0,107740.0,0.33019656]
[1761026315029,0.01096666,107770.0,107760.0,0.18559762]
[1761026316211,0.35096666,107770.0,107760.0,0.18559762]
[1761026317903,0.35096666,107770.0,107760.0,0.16159762]
[1761026318044,0.35096666,107770.0,107760.0,0.18015738]
[1761026321025,0.19661676,107770.0,107760.0,0.18015738]
[1761026321237,0.31284053,107790.0,107760.0,0.18015738]
[1761026321421,3.0,107780.0,107760.0,0.68030671]
[1761026321638,3.0,107780.0,107760.0,0.66174695]
[1761026322137,3.0,107770.0,107760.0,0.66174695]
[1761026322503,0.01044845,107770.0,107760.0,0.66174695]
[1761026322915,3.0,107770.0,107760.0,0.66174695]
[1761026325074,3.0,107770.0,107760.0,0.64648236]
[1761026325710,0.01080369,107780.0,107760.0,0.68256596]
[1761026325918,0.01080369,107780.0,107770.0,0.01855804]
[1761026326126,0.65272053,107790.0,107770.0,0.01855804]
[1761026326545,0.65272053,107790.0,107770.0,0.20413791]
[1761026326754,0.65272053,107790.0,107760.0,0.68256596]
[1761026326965,0.52556318,107780.0,107770.0,0.01855804]
[1761026328065,0.52556318,107780.0,107760.0,0.80040596]
[1761026328898,0.53635592,107780.0,107760.0,0.80040596]
[1761026329480,0.55091158,107780.0,107760.0,0.80040596]
[1761026329679,0.53635592,107780.0,107760.0,0.80040596]
[1761026332090,0.53635592,107780.0,107760.0,0.70780834]
[1761026332240,0.53635592,107780.0,107760.0,0.89340596]
[1761026332854,0.53635592,107780.0,107770.0,0.01855804]
[1761026339378,0.53635592,107780.0,107760.0,1.029164]
[1761026339582,0.53635592,107780.0,107770.0,0.01855804]
[1761026342543,0.35079274,107780.0,107770.0,0.01855804]
[1761026343628,0.35079274,107780.0,107770.0,0.20413844]
[1761026343942,0.35079274,107780.0,107770.0,0.1855804]
[1761026344562,0.35079274,107780.0,107760.0,0.880804]
[1761026344773,0.35079274,107780.0,107770.0,0.01855804]
[1761026345179,0.53635592,107780.0,107770.0,0.01855804]
[1761026346357,0.53635592,107780.0,107760.0,0.880804]
[1761026346557,0.53635592,107780.0,107770.0,0.01509451]
[1761026348084,0.35079274,107780.0,107770.0,0.20067491]
[1761026348335,0.35079274,107780.0,107760.0,0.880804]
[1761026348517,0.35079274,107780.0,107770.0,0.01571997]
[1761026349331,0.53635592,107780.0,107770.0,0.01571997]
[1761026350367,0.53635592,107780.0,107760.0,0.880684]
[1761026352895,0.53635592,107780.0,107760.0,0.60526737]
[1761026353099,0.02319755,107770.0,107760.0,0.48770737]
[1761026353479,0.02319755,107770.0,107760.0,0.42070737]
[1761026353677,0.02319755,107770.0,107760.0,0.60630499]
[1761026354574,0.66629795,107770.0,107760.0,0.42070737]
[1761026354783,3.6431004,107770.0,107760.0,0.42070737]
[1761026356173,3.51837188,107770.0,107760.0,0.42070737]
[1761026356336,3.66777,107770.0,107760.0,0.42070737]
[1761026356755,3.6431004,107770.0,107760.0,0.42070737]
[1761026356956,3.65777873,107770.0,107760.0,0.42070737]
[1761026357257,3.6432204,107770.0,107760.0,0.42070737]
[1761026359791,3.65777887,107770.0,107760.0,0.42070737]
[1761026361208,3.65777887,107770.0,107760.0,0.35870737]
[1761026364546,3.54013887,107770.0,107760.0,0.35870737]
[1761026364990,3.31769887,107770.0,107760.0,0.35870737]
[1761026365447,3.65769887,107770.0,107760.0,0.35870737]
[1761026365630,3.6431404,107770.0,107760.0,0.35870737]
[1761026367911,3.44188972,107770.0,107760.0,0.35870737]
[1761026368312,3.44188972,107770.0,107760.0,0.30470737]
[1761026369424,3.27460633,107770.0,107760.0,0.30470737]
[1761026372293,3.15704633,107770.0,107760.0,0.30470737]
[1761026372503,2.97146593,107770.0,107760.0,0.30470737]
[1761026372730,2.63146593,107770.0,107760.0,0.30470737]
[1761026373114,0.45748,107770.0,107760.0,0.30470737]
[1761026374438,0.45748,107770.0,107760.0,0.49030499]
[1761026375278,0.45748,107770.0,107760.0,0.30470737]
[1761026375485,0.45748,107770.0,107760.0,0.24670737]
[1761026376340,0.45748,107770.0,107760.0,0.43230499]
[1761026379159,0.47203698,107770.0,107760.0,0.43230499]
[1761026379559,0.45748,107770.0,107760.0,0.43230499]
[1761026382557,0.45748,107770.0,107760.0,0.37930499]
[1761026389673,0.45748,107770.0,107760.0,0.31930499]
[1761026392797,0.47203681,107770.0,107760.0,0.31930499]
[1761026393000,0.45748,107770.0,107760.0,0.31930499]
[1761026396094,0.47203671,107770.0,107760.0,0.31930499]
[1761026396663,0.47203671,107770.0,107760.0,0.27330499]
[1761026397668,0.47070483,107770.0,107760.0,0.27330499]
[1761026400996,0.35455671,107770.0,107760.0,0.27330499]
[1761026402360,0.01455671,107770.0,107760.0,0.27330499]
[1761026402602,0.03775426,107770.0,107760.0,0.27330499]
[1761026403748,0.01079274,107780.0,107770.0,0.1855804]
[1761026404042,0.36319324,107790.0,107780.0,0.18556318]
[1761026404257,0.34869057,107790.0,107780.0,0.18556318]
[1761026404478,0.34869057,107790.0,107770.0,0.1855804]
[1761026404911,0.01848929,107790.0,107780.0,0.81859783]
[1761026405128,0.01848929,107790.0,107780.0,0.30288318]
[1761026405337,0.02319109,107800.0,107780.0,0.30288318]
[1761026405338,0.36319109,107800.0,107780.0,0.30288318]
[1761026405544,0.53421008,107800.0,107780.0,0.30288318]
[1761026405760,0.34868103,107800.0,107780.0,0.18556318]
[1761026405961,0.34868103,107800.0,107780.0,0.30288318]
[1761026406173,0.36729445,107800.0,107780.0,0.30288318]
[1761026406379,0.36729445,107800.0,107790.0,0.18554596]
[1761026406814,0.36729445,107800.0,107780.0,0.30288318]
[1761026407196,0.38184856,107800.0,107780.0,0.30288318]
[1761026407427,3.0,107790.0,107780.0,0.30288318]
[1761026408502,3.0,107790.0,107780.0,0.11732]
[1761026408880,3.0,107790.0,107780.0,0.30288318]
[1761026409497,3.0,107790.0,107770.0,0.27539824]
[1761026409700,3.02319539,107780.0,107770.0,0.3029004]
[1761026410044,3.0,107780.0,107770.0,0.3029004]
[1761026410254,3.18556318,107780.0,107760.0,0.27330254]
[1761026410443,3.0,107780.0,107760.0,0.48044155]
[1761026410947,3.34,107780.0,107770.0,0.1855804]
[1761026411764,3.34,107780.0,107760.0,0.48044155]
[1761026411969,3.0,107770.0,107760.0,0.48044155]
[1761026412588,3.0,107770.0,107760.0,0.39062499]
[1761026416655,0.34,107780.0,107770.0,0.1855804]
[1761026416970,0.03316753,107800.0,107790.0,0.18554596]
[1761026417179,0.34,107790.0,107780.0,0.18554813]
[1761026417593,0.3486881,107790.0,107780.0,0.18554813]
[1761026418011,0.34,107790.0,107780.0,0.18554813]
[1761026418641,0.34,107790.0,107780.0,0.30290813]
[1761026418898,0.34,107790.0,107780.0,0.25790813]
[1761026420564,0.34,107790.0,107780.0,0.14054813]
[1761026420769,0.34,107790.0,107780.0,0.14497138]
[1761026420975,0.33605671,107800.0,107780.0,0.14497138]
[1761026421181,0.02319324,107790.0,107780.0,0.14497138]
[1761026421606,0.02319324,107790.0,107780.0,0.14687407]
[1761026422025,0.02319324,107790.0,107780.0,0.15708004]
[1761026424937,0.36319324,107790.0,107780.0,0.15708004]
[1761026425139,0.34,107790.0,107780.0,0.15708004]
[1761026425978,0.34,107790.0,107780.0,0.12608004]
[1761026429132,3.0,107780.0,107770.0,0.18557072]
[1761026430392,2.99960221,107780.0,107770.0,0.18657072]
[1761026430996,2.99960221,107780.0,107770.0,0.18557072]
[1761026435670,0.34,107790.0,107780.0,0.18556318]
[1761026436316,0.34868755,107790.0,107780.0,0.18556318]
[1761026437089,0.34,107790.0,107780.0,0.18556318]
[1761026438179,0.34,107790.0,107780.0,0.15156318]
[1761026440650,3.0,107780.0,107770.0,0.18557072]
[1761026442234,0.45732,107780.0,107760.0,0.27330499]
[1761026442421,0.45732,107780.0,107770.0,0.1855804]
[1761026443468,0.45732,107780.0,107760.0,0.27330499]
[1761026444164,0.45732,107780.0,107770.0,0.005]
[1761026445591,0.45732,107780.0,107770.0,0.1905804]
[1761026446871,0.34,107780.0,107770.0,0.1905804]
[1761026447737,0.01861342,107800.0,107780.0,0.18556318]
[1761026447969,0.07183284,107800.0,107790.0,0.18554596]
[1761026448186,0.51053942,107800.0,107790.0,0.18554596]
[1761026448394,0.48734833,107800.0,107780.0,0.18556318]
[1761026448608,0.02319324,107790.0,107780.0,0.18556318]
[1761026450145,0.02319324,107790.0,107780.0,0.15556318]